Cogmind - Beta 9.6 @@@ ROGUE MODE // 2020.08.16 @ 19:47:27 Player: ptdel Result: Destroyed by G-34 Mercenary with Small Laser Performance ------------- Evolutions (0) 0 Regions Visited (2) 400 Robots Destroyed (20) 100 Value Destroyed (504) 504 Prototype IDs (2) 40 Alien Tech Used (0) 0 Bonus (0) 0 TOTAL SCORE: 1044 Bonus ------- None Cogmind --------- Core Integrity 0/250 Matter 300/300 Energy 250/250 System Corruption 0% Temperature Cool (6) Movement Walking (210) Ox3 Location -10/Mines Parts ------- > --- POWER (1) -------- Ion Engine > --- PROPULSION (2) --- Aluminum Leg Aluminum Leg > --- UTILITY (2) ------ High-capacity Storage Unit High-capacity Storage Unit > --- WEAPON (2) ------- Heavy Hammer > --- INVENTORY (20) --- Flight Unit Flight Unit Flight Unit Flight Unit Flight Unit Improved Heat Sink ECM Suite Hardened Light Armor Plating Hardened Light Armor Plating Hardened Light Armor Plating Hardened Light Armor Plating Light Assault Rifle Mining Laser Peak State ------------ > --- POWER ------------ Light Ion Engine > --- PROPULSION ------- Light Treads Light Treads > --- UTILITY ---------- Large Storage Unit Large Storage Unit > --- WEAPON ----------- Small Laser Heavy Hammer > --- INVENTORY -------- Flight Unit Flight Unit Flight Unit Flight Unit Improved Heat Sink High-capacity Storage Unit ECM Suite Light Assault Rifle [Rating: 9] Favorites ----------- Power Light Ion Engine Engine Light Ion Engine Propulsion Light Treads Treads Light Treads Leg Aluminum Leg Utility High-capacity Storage Unit Device ECM Suite Storage High-capacity Storage Unit Weapon Heavy Hammer Energy Gun Small Laser Ballistic Gun Light Assault Rifle Impact Weapon Heavy Hammer Build | -11 -10 -10 ------- Run | Scr Mat Min Slots Evolved . | . . . Power . | . . . Propulsion . | . . . Utility . | . . . Weapon . | . . . Parts Attached 22 | 6 13 3 Power 3 | 1 1 1 Engine 3 | 1 1 1 Core . | . . . Reactor . | . . . Propulsion 6 | 2 2 2 Treads 4 | 2 2 . Leg 2 | . . 2 Wheel . | . . . Hover . | . . . Flight . | . . . Utility 6 | 1 5 . Device 1 | . 1 . Storage 5 | 1 4 . Processor . | . . . Hackware . | . . . Protection . | . . . Artifact . | . . . Weapon 7 | 2 5 . Energy Gun 3 | . 3 . Energy Cannon . | . . . Ballistic Gun 3 | 2 1 . Ballistic Cannon . | . . . Launcher . | . . . Special Weapon . | . . . Impact Weapon 1 | . 1 . Slashing Weapon . | . . . Piercing Weapon . | . . . Special Melee Weapon . | . . . Unidentified Prototypes . | . . . Parts Lost 6 | . 2 4 Power 1 | . . 1 Propulsion 2 | . . 2 Utility . | . . . Weapon 3 | . 2 1 Highest Loss Streak 4 | . 2 4 Average Slot Usage (%) 89 | . 97 83 Engine 13 | . 14 13 Treads 18 | . 28 12 Leg 4 | . . 8 Device 4 | . 10 . Storage 23 | . 16 28 Energy Gun 8 | . 10 6 Ballistic Gun 4 | . 10 . Impact Weapon 10 | . 4 14 Naked Turns . | . . . Heaviest Build 72 | 9 71 72 Greatest Support 40 | 40 40 40 Greatest Overweight (x) 23 | . 1 23 Average Overweight (x) 1 | . . 3 Largest Inventory Capacity 20 | 6 20 20 Average Capacity 15 | 5 8 20 Most Carried 14 | 6 13 14 Average Carried 9 | 3 5 13 Final Capacity 20 | 6 20 20 Final Carried 13 | 6 13 13 Class Distribution -------------------- 63% | Hauler-Mutant 36% | Mutant Dominant Class ---------------- Mutant | -10/Materials Hauler-Mutant | -10/Mines Resources | -11 -10 -10 ----------- Run | Scr Mat Min Matter Collected 484 | 192 262 30 Remotely . | . . . Salvage Created 676 | . 569 107 Parts 36 | . 32 4 Haulers Intercepted 1 | . 1 . Recyclers Shooed 1 | . . 1 Parts Field Recycled . | . . . Retrieved Matter . | . . . Parts Self-Destructed . | . . . Prevented . | . . . Kills | -11 -10 -10 ------- Run | Scr Mat Min Combat Hostiles Destroyed 15 | . 13 2 Melee 1 | . . 1 Guns 12 | . 12 . Classes Destroyed 7 | . 7 . Worker 1 | . 1 . Builder 1 | . 1 . Hauler 1 | . 1 . Operator 1 | . 1 . Watcher 1 | . 1 . Swarmer 3 | . 3 . Grunt 12 | . 10 2 Best Kill Streak 4 | . 4 1 Combat Bots Only 4 | . 4 1 Max Kills in Single Turn 1 | . 1 1 Gunslinging . | . . . Exploded . | . . . Melee 1 | . . 1 Uniques/NPCs Destroyed . | . . . Combat | -11 -10 -10 -------- Run | Scr Mat Min Damage Taken 1277 | . 648 629 Core 258 | . 87 171 Absorbed by Shields . | . . . Core Remaining (%) 100 | 100 . . Volleys Fired 51 | . 51 . Largest 2 | . 2 . Hottest 90 | . 90 . Shots Fired 91 | . 91 . Gun 91 | . 91 . Cannon . | . . . Launcher . | . . . Special . | . . . Kinetic 58 | . 58 . Thermal 33 | . 33 . Explosive . | . . . Electromagnetic . | . . . Robot Hit Streak 19 | . 19 . Robot Miss Streak 2 | . 2 . Penetration Max . | . . . Secondary Targets 2 | . 2 . Max Gunslinging Chain 1 | . 1 . Shots Hit Robots 100 | . 83 17 Core Hits 36 | . 32 4 Critical Hits . | . . . Critical Kills . | . . . Critical Parts Destroyed . | . . . Melee Attacks 33 | . 10 23 Impact 33 | . 10 23 Slashing . | . . . Piercing . | . . . Sneak Attacks 4 | . 3 1 Combat Hostiles . | . . . Follow-up Attacks . | . . . Damage Inflicted 1560 | . 1016 544 Guns 689 | . 689 . Cannons . | . . . Explosions . | . . . Melee 868 | . 324 544 Ramming 3 | . 3 . Kinetic 357 | . 357 . Thermal 332 | . 332 . Explosive . | . . . Electromagnetic . | . . . Impact 868 | . 324 544 Slashing . | . . . Piercing . | . . . Highest Corruption . | . . . Average Corruption . | . . . Corruption Purged . | . . . Overload Shots . | . . . Overflow Damage 141 | . 79 62 Projectiles . | . . . Explosions . | . . . Melee 141 | . 79 62 Knockbacks 2 | . 1 1 Impact 2 | . 1 1 Kinetic . | . . . Secondary . | . . . Self-Inflicted Damage . | . . . Shots . | . . . Rammed 2 | . 2 . Targets Rammed 2 | . 2 . Kicked . | . . . Crushed . | . . . Highest Temperature 147 | . 147 . Average Temperature 41 | . 41 . Received Heat Transfer 681 | . 333 348 Siege Activations . | . . . Robots Corrupted . | . . . Combat Hostiles . | . . . Parts Fried 3 | . 3 . Impact Corruptions 8 | . 5 3 Robots Melted . | . . . Combat Hostiles . | . . . Parts Melted 1 | . 1 . Heat Transferred 845 | . 845 . Parts Sabotaged . | . . . Parts Stolen . | . . . Parts Stripped . | . . . Power Chain Reactions . | . . . Missiles Intercepted . | . . . Alert | -11 -10 -10 ------- Run | Scr Mat Min Peak Influence 295 | . 295 30 Average Influence 57 | . 135 4 Maximum Alert Level 1 | . 1 . Low Security (%) 89 | 100 74 100 Level 1 10 | . 25 . Level 2 . | . . . Level 3 . | . . . Level 4 . | . . . Level 5 . | . . . High Security . | . . . Max Security . | . . . Squads Dispatched 4 | . 4 . Investigation 1 | . 1 . Extermination . | . . . Reinforcement 3 | . 3 . Assault . | . . . Garrison . | . . . Intercept . | . . . Construction Impeded . | . . . Haulers Reinforced . | . . . Stealth | -11 -10 -10 --------- Run | Scr Mat Min Distress Signals 3 | . 3 . Communications Jammed . | . . . Distress Signals . | . . . Times Spotted 58 | . 40 18 Peak Tracking Total 19 | . 6 19 Tactical Retreats 7 | . 6 1 Traps | -11 -10 -10 ------- Run | Scr Mat Min Traps Triggered 3 | . 3 . Indirectly . | . . . Trap Hack Attempts . | . . . Triggered . | . . . Disarmed . | . . . Reprogrammed . | . . . Reused . | . . . Traps Extracted . | . . . Installed . | . . . Triggered . | . . . Machines | -11 -10 -10 ---------- Run | Scr Mat Min Machines Disabled . | . . . Max in Single Turn . | . . . Machines Sabotaged . | . . . Garrisons Compromised . | . . . Overloaded Fab Kills . | . . . Fab Network Shutdowns . | . . . Hacking | -11 -10 -10 --------- Run | Scr Mat Min Machines Accessed 4 | . 4 . Terminals 3 | . 3 . Fabricators . | . . . Repair Stations 1 | . 1 . Recycling Units . | . . . Scanalyzers . | . . . Garrison Access . | . . . Total Hacks 9 | . 9 . Successful 5 | . 5 . Failed 4 | . 4 . Catastrophic 2 | . 2 . Database Lockouts . | . . . Manual 3 | . 3 . Terminals 7 | . 7 . Fabricators . | . . . Repair Stations 2 | . 2 . Recycling Units . | . . . Scanalyzers . | . . . Garrison Access . | . . . Terminal Hacks 4 | . 4 . Prototype ID Bank 1 | . 1 . Emergency Access Points 1 | . 1 . Zone Layout 2 | . 2 . Fabricator Hacks . | . . . Repair Station Hacks 1 | . 1 . Scan Component 1 | . 1 . Recycling Unit Hacks . | . . . Scanalyzer . | . . . Garrison Access Hacks . | . . . Unauthorized Hacks . | . . . Terminals . | . . . Fabricators . | . . . Repair Stations . | . . . Recycling Units . | . . . Scanalyzers . | . . . Garrison Access . | . . . Data Cores Recovered . | . . . Used . | . . . Hacking Detections 3 | . 3 . Full Trace Events . | . . . Feedback Events . | . . . Feedback Blocked . | . . . Robot Schematics Acquired . | . . . Robots Built . | . . . Matter . | . . . Time . | . . . Total Robot Build Rating . | . . . Part Schematics Acquired . | . . . Parts Built . | . . . Matter . | . . . Time . | . . . Total Part Build Rating . | . . . Parts Repaired . | . . . Time . | . . . Parts Recycled . | . . . Recycled Matter . | . . . Retrieved Matter . | . . . Retrieved Components . | . . . Parts Scanalyzed . | . . . Part Schematics Acquired . | . . . Parts Damaged . | . . . Bothacking | -11 -10 -10 ------------ Run | Scr Mat Min Used RIF Installer . | . . . Robots Hacked . | . . . Non-combat . | . . . Combat . | . . . Robot Hacks Applied . | . . . Relay Couplers Released . | . . . Robots Rewired . | . . . Allies Hacked . | . . . Hacks Repelled . | . . . Allies | -11 -10 -10 -------- Run | Scr Mat Min Total Allies 5 | . . 5 Largest Group 3 | . . 3 Highest-Rated Group 45 | . . 45 Highest-Rated Ally 31 | . . 31 Total Orders . | . . . Ally Attacks 6 | . . 6 Total Damage 61 | . . 61 Kills . | . . . Allies Corrupted . | . . . Allies Melted . | . . . Intel | -11 -10 -10 ------- Run | Scr Mat Min Robot Analysis Total . | . . . Derelict Logs Recovered 2 | . . 2 Drone Launches . | . . . Drone Recoveries . | . . . Exploration | -11 -10 -10 ------------- Run | Scr Mat Min Turns Passed 3084 | 80 1258 1746 Spaces Moved 1346 | 48 603 695 Core 23 | 12 . 11 Treads 1060 | 36 603 421 Legs 263 | . . 263 Wheels . | . . . Hover . | . . . Flight . | . . . Fastest Speed 50 | 50 160 180 Average Speed 201 | 132 163 238 Slowest Speed 1200 | 160 180 1200 Overloaded Moves . | . . . Propulsion Burnouts . | . . . Robots Hopped . | . . . Cave-ins Triggered . | . . . Exploration Rate (%) 53 | 4 67 89 Regions Visited 2 Branch Regions 1 Pre-discovered Areas . | . . . Known Exits Taken . | . . . Unknown Exits Taken 2 | 1 1 . Scrap Searched 4 | . . 4 Spaces Dug . | . . . Terrain Destroyed . | . . . Melee . | . . . Projectile . | . . . AOE . | . . . Actions | -11 -10 -10 --------- Run | Scr Mat Min Total 1582 | 65 779 738 Wait 75 | . 61 14 Move 1344 | 47 602 695 Hop . | . . . Pick Up 42 | 12 27 3 Fast Attach . | . . . Attach 16 | 6 7 3 Detach . | . . . Swap 6 | . 6 . Drop 13 | . 13 . Fire 51 | . 51 . Melee 33 | . 10 23 Ram . | . . . Kick . | . . . Crush 2 | . 2 . Escape Stasis . | . . . Rewire . | . . . Trap . | . . . Miscellaneous . | . . . Route ------- -11/Scrapyard -10/Materials (discovered 3 exits: [*Mat x2] / [*Min]) -10/Mines (discovered 1 exit: [*Mat]) History --------- Turn | Location | Event 21 | -11/Scrapyard | Discovered new exit (range 16) 81 | -11/Scrapyard | Entered Materials 156 | -10/Materials | Discovered new exit (range 14) 317 | -10/Materials | Build established: Mutant 573 | -10/Materials | Discovered new exit (range 16) 750 | -10/Materials | Discovered new exit (range 15) 1339 | -10/Materials | Entered Mines 1419 | -10/Mines | Build established: Hauler-Mutant 1548 | -10/Mines | Learned Materials stockpile data 1906 | -10/Mines | Assembled infested the area 2113 | -10/Mines | Core integrity fell below 50% 2160 | -10/Mines | Core integrity fell below 20% 2178 | -10/Mines | Lost 4 parts (1p2n1w) 2290 | -10/Mines | Assisted by bots powering up and referring to "LRC-V3" 2511 | -10/Mines | Discovered new exit (range 15) 3085 | -10/Mines | Destroyed by G-34 Mercenary with Small Laser Last Messages --------------- 02290_ Trooper 1b: "Hello LRC-V3. What is your command?" 02511_ EXIT=FOUND 02887_ Acquired Aluminum Leg. 02889_ Acquired 10 matter. 02927_ Searching scrap... 02927_ Found 30 Matter. 02927_ Found Com. Wheel. 02949_ A derelict emerges from the shadows: "What are you doing alone down here?" 02951_ 76-RSO(g): "Well, at least you look like you can take care of yourself!" 02953_ 76-RSO(g): "I have the funny feeling that things are about to get a lot worse around here, see you around!" 02953_ 76-RSO(g) slips back into the shadows. 03047_ Mercenary 1a destroyed. 03052_ Trooper 1b destroyed. 03060_ Trooper 1a destroyed. 03081_ Destroyed Particle Gun. 03081_ G-47 Trooper system corrupted by crushing effect. 03082_ G-47 Trooper system terminally corrupted. Map ----- +----------------------------------------------------+ | ??????????## ##??## ## ##?? | | ????####### #???# ###? ####??? | | ???## ## #???## ##????#?????? | | ???# ##### ##????# #???????????? | | ???# ##???####?????# #???????####? | | ???## #?????????????# ####???? #? | | ????##### #????????????## ????? #? | | ????????### * ##?????????## ##????## #?? | | ????????#[%=%[ ########### ###### #??? | | ????????? # =%*## *% ## #??? | | ????????? ## [ [%=[ #???? | | ???????? ??# # !## ##### | | ???????##?## ###### ## | | ?????????## #???## | | ?????????# #####???# | | ?????????# ##???????# | | ?????????# ##???????## | | ?????????## #????????## ## | | ??????????### #?????????# ### | | ????????????### #?????????# #?####### # | | ??????????# ###= #????????## #???????##### | | ??????????# % #????????# #???????????? | | ??????????#####%%###??????# #####?????????? | | ??????????????#*%!g#??????# ## ##????????? | | ??????????????####!#?????## ##??????## | | ????????###??????#@#?????# ##????## | | ???????## ##?????# #?????###### ###### | | ??????## #?????# #??????????## | | ??????# ##????# #???????????# < | | ??????# ###?## #???????????# ##### | | ??????# ### #??????????## #??# # | | ??????#### #??????????# #??## # | | ?????????#### ##??????????# #???#### | | ????????????## ##???????????## ##??????? | | ?????????????#####?????????????####???????? | | ??????????????????????????????????????????? | | ??????????????????????????????????????????? | | ??????????????????????????????????????????? | | | | | | | | | | | | | | | | | | | | | | | | | +----------------------------------------------------+ Best States ------------- Heat Dissipation 25 Energy Generation 10 Energy Capacity 250 Matter Stores 300 Matter Capacity 300 Sight Range 16 Terrain Scan Density 10 ECM Strength 1 Evasion (%) 50 Recoil Reduction 2 Item Schematics ----------------- None Robot Schematics ------------------ None Fabricated ------------ Nothing Alien Tech Used ----------------- None Achievements -------------- Slippery One Challenges ------------ None Game ------ Seed GravityAerolevShockpuncher Manual? 0 Play Time 00:19:20 Cumulative 40.1 hours Start 2020.08.16 @ 19:28:15 End 2020.08.16 @ 19:47:27 Sessions 1 Manual Loads 0 Difficulty Rogue Special Mode None Game No. 56 Rogue 40 Adventurer 15 Explorer 1 Win Type - Total 0 Types 0/0/0/0/0/0/0 Lore% 18 Gallery% 33 Achievement% 31 Wizard Run 0 Options --------- ASCII 0 Keyboard 0 Movement Numpad Keybinds 0 Fullscreen 2 Font 18/SmallcapsGlow Map View 76x50 Tactical HUD 1 Map Filters NONE Filters NONE Steam 1 RUN: 685dbee1-6332-4bde-a00b-5d3857ef7ee6